Workbook

Sheet Damer
A1: Navn | B1: Klubb | C1: Team | D1: Klasse | E1: F.år | F1: Skikrets | G1: Total | H1: Plast | I1: Sum | J1: NC Vikersund 30.11 | K1: NC Vikersund 01.12 | L1: WC Lillehammer 07.12 | M1: COC Cup Notodden 13.12 | N1: COC Notodden 14.12 | O1: WC Hinterzarten 21.12 | P1: WC Hinterzarten 22.12 | Q1: WC Chaikovsky 03.01 | R1: WC Chaikovsky 04.01 | S1: NC Lysgårdsbakken 04.01 | T1: NC Lysgårdsbakken 05.01 | U1: WC Sapporo 11.01 | V1: WC Sapporo 12.01 | W1: WC Zao 18.01 | X1: WC Zao 19.01 | Y1: WC Planica 25.01 | Z1: WC Planica 26.01 | AA1: NC Sprova 226.01 | AB1: JR VM Val di Flemme 28.01 | AC1: NJ Rovaniemi 01.02 | AD1: NC Lønnberget 08.02 | AE1: NC Lønnberget 09.02 | AF1: OL Sochi 11.02 | AG1: NC Granåsen 15.02 | AH1: COC Lahti 15-16.2 | AI1: NC Holmenkollen 01.03.01 | AJ1: NC Holmenkollen 01.03.02 | AK1: COC Falun 01.03-02.03 | AL1: WC Rasnov 01.03-02.03 | AM1: WC Holmenkollen 08.03 | AN1: WC Falun 15.03 | AO1: NM Junior Mo 15.03 | AP1: NM Senior Trysil 12.03 | AQ1: NM Skarbakken 29.03
A2: Maren Lundby | B2: Kolbukameratene | C2: Lillehammerhopp | D2: K NC Elite | E2: 1994 | F2: Oppland Skikrets | G2: =SUM(H2:I2) -> 17382 | H2: 3521 | I2: =SUM(J2:BA2) -> 13861 | L2: 750 | O2: 650 | P2: 595 | Q2: 830 | R2: 750 | U2: 565 | V2: 511 | W2: 910 | X2: 910 | Y2: 810 | Z2: 870 | AB2: 480 | AF2: 830 | AL2: 1860 | AM2: 850 | AN2: 690 | AP2: 500 | AQ2: 500
A3: Line Jahr | B3: Vikersund IF | C3: Lillehammerhopp | D3: K NC Elite | E3: 1984 | F3: Buskerud Skikrets | G3: 16005 | H3: 3509 | I3: 12496 | J3: 140 | K3: 100 | L3: 550 | O3: 546 | P3: 770 | Q3: 710 | R3: 710 | U3: 670 | V3: 770 | W3: 710 | X3: 830 | Y3: 630 | Z3: 670 | AF3: 810 | AL3: 1380 | AM3: 810 | AN3: 710 | AP3: 490 | AQ3: 490
A4: Gyda Enger | B4: Hernes IL | C4: Lillehammerhopp | D4: K NC Elite | E4: 1993 | F4: Hedmark Skikrets | G4: 14704 | H4: 3240 | I4: 11464 | L4: 490 | M4: 693 | N4: 693 | O4: 462 | P4: 518 | Q4: 870 | R4: 670 | U4: 469 | V4: 483 | W4: 497 | X4: 504 | Y4: 580 | Z4: 610 | AF4: 546 | AL4: 1126 | AM4: 830 | AN4: 483 | AP4: 470 | AQ4: 470
A5: Helena Olsson Smeby | B5: Byåsen Skiklubb | D5: K Elite | F5: Sør-Tr.lag Skikrets | G5: 11686 | H5: 2331 | I5: 9355 | L5: 730 | O5: 910 | P5: 910 | Q5: 610 | R5: 630 | W5: 595 | X5: 910 | Y5: 790 | Z5: 730 | AL5: 1480 | AN5: 580 | AQ5: 480
A6: Anna Odine Strøm | B6: Alta IF | C6: Hedmarkhopp | D6: K NC B | E6: 1998 | F6: Finnmark | G6: 11202 | H6: 1919 | I6: 9283 | L6: 476 | M6: 665 | N6: 686 | O6: 448 | P6: 434 | S6: 500 | T6: 500 | AB6: 414 | AC6: 200 | AD6: 200 | AE6: 200 | AF6: 710 | AH6: 1365 | AL6: 1036 | AN6: 525 | AP6: 462 | AQ6: 462
A7: Anette Sagen | B7: Helfjell IL | C7: Flying Team Vikersund | D7: K NC elite | E7: 1985 | F7: Nordland Skikrets | G7: 6488 | H7: 490 | I7: 5998 | J7: 130 | L7: 525 | M7: 700 | N7: 700 | O7: 518 | P7: 427 | W7: 670 | X7: 539 | AI7: 300 | AJ7: 300 | AM7: 650 | AN7: 539
A8: Anniken Mork | B8: Ready | D8: K NC B | E8: 1991 | F8: Oslo | G8: 6319 | H8: 1880 | I8: 4439 | J8: 80 | K8: 92 | M8: 560 | N8: 560 | S8: 480 | T8: 480 | AK8: 1295 | AP8: 454 | AQ8: 438
A9: Marthe Pauline Skinnes | B9: Ivrig IL | C9: Flying Team Vikersund | D9: K NC C | E9: 1994 | F9: Buskerud Skikrets | G9: 5688 | H9: 1197 | I9: 4491 | M9: 567 | N9: 553 | S9: 454 | T9: 462 | AK9: 1281 | AO9: 290 | AP9: 438 | AQ9: 446
A10: Karoline Andrea Røstad | B10: Skogn IL | D10: K NC A | E10: 1995 | F10: Nord-Tr.lag Skikrets | G10: 4381 | H10: 609 | I10: 3772 | S10: 470 | T10: 470 | AA10: 200 | AC10: 180 | AD10: 180 | AE10: 180 | AG10: 50 | AK10: 1288 | AO10: 300 | AQ10: 454
A11: Jenny Synnøve Hagemoen | B11: Gausdal SL | C11: NTG | D11: K NC Elite | E11: 1993 | F11: Oppland skikrets | G11: 4030 | H11: 0 | I11: 4030 | M11: 658 | N11: 658 | S11: 490 | T11: 490 | AD11: 190 | AE11: 190 | AG11: 45 | AK11: 1309
A12: Tonje Bakke | B12: Elverum Hopp | C12: Hedmarkhopp | D12: K RC A | F12: Hedmark Skikrets | G12: 3760 | H12: 1183 | I12: 2577 | M12: 535 | N12: 505 | S12: 462 | T12: 454 | AC12: 175 | AP12: 446
A13: Sara Melø | B13: Namdalseid IL | D13: K RC | E13: 1998 | F13: Nord-Tr.lag Skikrets | G13: 1169 | H13: 1169 | I13: 0
A14: Maria Beisvåg | B14: Jardar IL | C14: Kollenhopp | D14: K RC A | F14: Akershus | G14: 650 | H14: 0 | I14: 650 | AC14: 170 | AP14: 480
A15: Silje Opseth | B15: Holeværingen IL | C15: Flying Team Vikersund | D15: K NC | E15: 1999 | F15: Buskerud Skikrets | G15: 430 | H15: 0 | I15: 430 | AP15: 430
A16: Thea Øihaugen | B16: Gausdal SL | D16: K NC | E16: 2001 | F16: Oppland Skikrets | G16: 422 | H16: 0 | I16: 422 | AP16: 422
A17: Hanna Midtsundstad | B17: Vaaler IF | C17: Hedmarkhopp | D17: K NC | E17: 1999 | F17: Hedmark Skikrets | G17: 414 | H17: 0 | I17: 414 | AP17: 414
A18: Mari Leinan Lund | B18: Tolga IL | C18: Hedmarkhopp | D18: K NC | E18: 1999 | F18: Hedmark Skikrets | G18: 406 | H18: 0 | I18: 406 | AP18: 406

Sheet Herrer
A1: ETTERNAVN | B1: FORNAVN | C1: KLUBB | D1: TEAM | E1: KLASSE | F1: F.år | G1: SKIKRETS | H1: TOTAL | I1: Plast | J1: SUM | K1: WC Klingenthal 24.11 | L1: WC Kuusamo 29.11 | M1: NC Vikersund 30.11 | N1: NC Vikersund 01.12 | O1: WC Lillehammer 07.12 | P1: WC Lillehammer 08.12 | Q1: FIS Cup Notodden 12.12 | R1: COC Rena 13.12 | S1: FIS Cup Notodden 13.12 | T1: WC Titisee-Neustadt 14.12 | U1: COC Rena 14.12 | V1: WC Titisee-Neustadt 15.12 | W1: COC Lahti 20.12 | X1: COC Lahti 21.12 | Y1: WC Engelberg 21.12 | Z1: WC Engelberg 22.12 | AA1: WC Oberstdorf 29.12 | AB1: WC Garmisch-Partenkirchen 01.01 | AC1: WC Innsbruck 04.01 | AD1: NC Lysgårdsbakken 04.01 | AE1: NC Lysgårdsbakken 05.01 | AF1: WC Bischofshofen 06.01 | AG1: NC Granåsen 11.01 | AH1: NC Granåsen 12.01 | AI1: WC Tauplitz 11.01 | AJ1: WC Tauplitz 12.01 | AK1: COC Courchevel 11.01 | AL1: COC Courchevel 12.01 | AM1: WC Wisla 16.01 | AN1: WC Zakopane 19.01 | AO1: NC Steinkjerbakken 18-19.01 | AP1: COC Sapporo 16-19.01 | AQ1: NM Lysgårdsbakken 21.01 | AR1: WC Sapporo 25.01 | AS1: WC Sapporo 26.01 | AT1: NC C Lierberget 25.01 | AU1: NC Sprova 1 26.01 | AV1: NC Sprova 2 26.01 | AW1: WC Willingen 01.02 | AX1: WC Willingen 02.02 | AY1: VM Jr Val di Flemme 31.01 | AZ1: COC Iron Mountain 07.02 | BA1: COC Iron Mountain 08.02 | BB1: OL Sochi 09.02 | BC1: NC Lønnberget 08.02 | BD1: NC Lønnberget 09.02 | BE1: NJ Rovaniemi 01.02 | BF1: FIS Westby 31.01/01.02 | BG1: FIS Ishpeming 05.02 | BH1: COC Brotterode 14.02 | BI1: OL Sochi 15.02 | BJ1: COC Brotterode 15.02 | BK1: COC Brotterode 16.02 | BL1: NC Granåsen 15.02 | BM1: NM Junior Granåsen 16.02 | BN1: COC Seefeld 20.02 | BO1: COC Seefeld 21.02 | BP1: WC Falun 26.02 | BQ1: NC Holmenkollen 01.03.01 | BR1: NC Holmenkollen 01.03.02 | BS1: COC Falun 01.03-02.03 | BT1: WC Lahti 28.02-02.03 | BU1: WC Kuopio 04.03 | BV1: WC Granåsen 07.03 | BW1: COC Zakopane 08.03 | BX1: COC Zakopane 09.03 | BY1: WC Holmenkollen 09.03 | BZ1: WC Harrachov 15.03 | CA1: NM Junior Mo 15.03 | CB1: WC Planica 21.03 | CC1: WC Planica 23.03 | CD1: NM Skarbakken 29.03
A2: Bardal | B2: Anders | C2: Steinkjer skiklubb | D2: Trønderhopp | E2: M NC Elite | F2: 1982 | G2: N-Tr.lag | H2: =SUM(I2+J2) -> 26300 | I2: 4980 | J2: =SUM(K2:CX2) -> 21320 | O2: 910 | P2: 970 | T2: 790 | V2: 910 | Y2: 940 | Z2: 890 | AA2: 970 | AB2: 730 | AC2: 710 | AF2: 870 | AM2: 810 | AN2: 1000 | AQ2: 500 | BB2: 940 | BI2: 670 | BP2: 870 | BT2: 1580 | BU2: 940 | BV2: 1000 | BY2: 970 | BZ2: 970 | CB2: 970 | CC2: 940 | CD2: 470
A3: Fannemel | B3: Anders | C3: Hornindal IL | D3: Lillehammerhopp | E3: M NC Elite | F3: 1991 | G3: Sogn og Fjordane | H3: =SUM(I3+J3) -> 20188 | I3: 3886 | J3: =SUM(K3:CX3) -> 16302 | K3: 511 | P3: 650 | T3: 497 | V3: 427 | Y3: 790 | Z3: 850 | AB3: 910 | AC3: 462 | AF3: 850 | AI3: 595 | AJ3: 890 | AM3: 532 | AN3: 518 | AQ3: 490 | BB3: 690 | BI3: 890 | BP3: 870 | BT3: 1119 | BU3: 483 | BV3: 462 | BZ3: 850 | CB3: 750 | CC3: 770 | CD3: 446
A4: Velta | B4: Rune | C4: Lommedalen IL | D4: Kollenhopp | E4: M NC Elite | F4: 1989 | G4: Akershus | H4: =SUM(I4+J4) -> 19086 | I4: 4899 | J4: =SUM(K4:CX4) -> 14187 | L4: 910 | O4: 810 | P4: 448 | T4: 518 | V4: 483 | Y4: 497 | AB4: 550 | AC4: 497 | AF4: 462 | AI4: 532 | AJ4: 730 | AM4: 850 | AN4: 565 | AQ4: 480 | BB4: 565 | BI4: 546 | BP4: 462 | BT4: 1229 | BU4: 525 | BV4: 518 | BY4: 610 | BZ4: 532 | CC4: 462 | CD4: 406
A5: Johansson | B5: Robert | C5: Søre Ål IL | D5: Lillehammerhopp | E5: M NC Elite | F5: 1990 | G5: Oppland | H5: =SUM(I5+J5) -> 17441 | I5: 4221 | J5: =SUM(K5:CX5) -> 13220 | L5: 730 | O5: 420 | P5: 364 | Y5: 427 | Z5: 392 | AD5: 490 | AE5: 490 | AI5: 476 | AJ5: 441 | AM5: 427 | AN5: 469 | AQ5: 446 | AR5: 595 | AS5: 610 | AW5: 392 | AX5: 469 | BH5: 609 | BJ5: 616 | BK5: 490 | BN5: 616 | BO5: 623 | BS5: 920 | BW5: 567 | BX5: 679 | CD5: 462
A6: Hilde | B6: Tom | C6: Asker SK | D6: Kollenhopp | E6: M NC Elite | F6: 1987 | G6: Akershus | H6: =SUM(I6+J6) -> 16075 | I6: 6835 | J6: =SUM(K6:CX6) -> 9240 | K6: 483 | O6: 670 | Y6: 610 | Z6: 504 | AA6: 580 | AF6: 434 | AN6: 483 | AQ6: 438 | BN6: 665 | BS6: 1337 | BV6: 670 | BY6: 730 | CB6: 610 | CC6: 546 | CD6: 480
A7: Stjernen | B7: Andreas | C7: Sprova | D7: Trønderhopp | E7: M NC Elite | F7: 1988 | G7: N.Tr.lag | H7: =SUM(I7+J7) -> 15211 | I7: 4049 | J7: =SUM(K7:CX7) -> 11162 | L7: 413 | O7: 392 | P7: 420 | R7: 595 | U7: 475 | AI7: 455 | AQ7: 422 | AR7: 364 | AS7: 413 | AW7: 511 | BL7: 438 | BN7: 630 | BO7: 672 | BT7: 1114 | BU7: 448 | BV7: 610 | BY7: 650 | CB7: 790 | CC7: 850 | CD7: 500
A8: Ingvaldsen | B8: Ole Marius | C8: Steinkjer SK | D8: Trønderhopp | E8: M NC Elite | F8: 1985 | G8: N.Tr.lag | H8: =SUM(I8+J8) -> 14310 | I8: 2977 | J8: =SUM(K8:CX8) -> 11333 | K8: 730 | O8: 580 | P8: 565 | T8: 462 | V8: 455 | Y8: 810 | Z8: 518 | AA8: 490 | AF8: 385 | AI8: 462 | AJ8: 496 | AQ8: 462 | AR8: 406 | AS8: 455 | AW8: 610 | AX8: 630 | BL8: 500 | BN8: 686 | BT8: 392 | BV8: 406 | BY8: 441 | CD8: 392
A9: Hauer | B9: Joachim | C9: Bækkelaget SK | D9: Kollenhopp | E9: M NC Elite | F9: 1991 | G9: Oslo | H9: =SUM(I9+J9) -> 14011 | I9: 2879 | J9: =SUM(K9:CX9) -> 11132 | M9: 470 | N9: 490 | R9: 490 | U9: 560 | AD9: 480 | AE9: 454 | AP9: 2390 | AR9: 378 | AS9: 462 | AW9: 378 | AZ9: 535 | BA9: 580 | BH9: 320 | BJ9: 460 | BK9: 260 | BQ9: 438 | BR9: 480 | BW9: 665 | BX9: 420 | CD9: 422
A10: Swensen | B10: Vegard | C10: Asker SK | D10: Lillehammerhopp | E10: M NC Elite | F10: 1986 | G10: Akershus | H10: =SUM(I10+J10) -> 13059 | I10: 3662 | J10: =SUM(K10:CX10) -> 9397 | M10: 454 | N10: 470 | R10: 300 | U10: 380 | AD10: 422 | AE10: 480 | AP10: 2130 | AR10: 469 | AS10: 476 | AX10: 378 | BC10: 398 | BD10: 500 | BH10: 360 | BJ10: 490 | BK10: 400 | BQ10: 422 | BR10: 470 | CD10: 398
A11: Grimsrud | B11: Simen Key | C11: Asker Skiklubb | D11: Kollenhopp | E11: M NC Elite | F11: 1992 | G11: Akershus | H11: =SUM(I11+J11) -> 12968 | I11: 2684 | J11: =SUM(K11:CX11) -> 10284 | M11: 398 | N11: 454 | U11: 588 | AD11: 392 | AE11: 500 | AK11: 651 | AL11: 609 | AP11: 2037 | AR11: 497 | AS11: 420 | AX11: 504 | AZ11: 320 | BA11: 574 | BH11: 270 | BJ11: 560 | BK11: 410 | BQ11: 454 | BR11: 384 | CD11: 262
A12: Sjøen | B12: Phillip | C12: Bækkelaget SK | D12: Kollenhopp | E12: M NC Elite | F12: 1995 | G12: Oslo | H12: =SUM(I12+J12) -> 11952 | I12: 4274 | J12: =SUM(K12:CX12) -> 7678 | N12: 490 | R12: 609 | U12: 609 | W12: 475 | X12: 330 | AD12: 446 | AE12: 438 | AK12: 280 | AQ12: 398 | AY12: 240 | BC12: 490 | BD12: 490 | BL12: 454 | BM12: 225 | BQ12: 500 | BR12: 414 | CA12: 300 | CD12: 490
A13: Tande | B13: Daniel Andrè | C13: Kongsberg IF | D13: Flying Team Vikersund | E13: M NC Elite | F13: 1994 | G13: Buskerud | H13: =SUM(I13+J13) -> 11625 | I13: 3135 | J13: =SUM(K13:CX13) -> 8490 | M13: 446 | N13: 500 | R13: 320 | U13: 505 | AD13: 500 | AE13: 462 | AI13: 497 | AJ13: 690 | AM13: 650 | AN13: 378 | AQ13: 454 | AY13: 392 | BQ13: 480 | BR13: 500 | BW13: 602 | BX13: 380 | CA13: 280 | CD13: 454
A14: Bjerkeengen | B14: Fredrik | C14: Kolbukameratene | D14: Lillehammerhopp | E14: M NC Elite | F14: 1988 | G14: Oppland | H14: =SUM(I14+J14) -> 11297 | I14: 4277 | J14: =SUM(K14:CX14) -> 7020 | L14: 406 | AD14: 454 | AE14: 360 | AQ14: 384 | AU14: 470 | AV14: 490 | AZ14: 581 | BA14: 679 | BH14: 567 | BJ14: 623 | BK14: 609 | BN14: 270 | BS14: 1127
A15: Forfang | B15: Johann Andrè | C15: Tromsø Skiklub | D15: Trønderhopp | E15: M NC Elite | F15: 1995 | G15: Troms | H15: =SUM(I15+J15) -> 10705 | I15: 2819 | J15: =SUM(K15:CX15) -> 7886 | M15: 480 | N15: 438 | R15: 658 | U15: 658 | W15: 430 | X15: 400 | AD15: 372 | AE15: 354 | AG15: 490 | AH15: 480 | AQ15: 372 | BL15: 366 | BM15: 280 | BQ15: 490 | BR15: 454 | BW15: 430 | BX15: 460 | CD15: 274
A16: Berggaard | B16: Mats Søhagen | C16: Ringkollen Skiklubb | D16: Flying Team Vikersund | E16: M NC Elite | F16: 1995 | G16: Buskerud | H16: =SUM(I16+J16) -> 10504 | I16: 3354 | J16: =SUM(K16:CX16) -> 7150 | M16: 500 | N16: 462 | R16: 440 | AD16: 430 | AE16: 446 | AK16: 581 | AL16: 505 | AQ16: 360 | AY16: 372 | BC16: 500 | BD16: 462 | BL16: 470 | BM16: 290 | BN16: 310 | BQ16: 414 | BR16: 398 | CA16: 210
A17: Rønsen | B17: Atle Pedersen | C17: Eidsvold IF | D17: Lillehammerhopp | E17: M NC Elite | F17: 1988 | G17: Akershus | H17: =SUM(I17+J17) -> 10483 | I17: 2378 | J17: =SUM(K17:CX17) -> 8105 | M17: 422 | N17: 454 | R17: 581 | U17: 574 | AD17: 414 | AE17: 470 | AQ17: 470 | AW17: 413 | AX17: 406 | BH17: 630 | BJ17: 672 | BK17: 672 | BN17: 595 | BO17: 350 | BS17: 690 | CD17: 292
A18: Brandt | B18: Johan Martin | C18: Steinkjer SK | D18: Trønderhopp | E18: M NC Elite | F18: 1987 | G18: N.Tr.lag | H18: =SUM(I18+J18) -> 10138 | I18: 3358 | J18: =SUM(K18:CX18) -> 6780 | M18: 406 | N18: 392 | R18: 450 | U18: 400 | AD18: 438 | AE18: 378 | AG18: 414 | AH18: 430 | AQ18: 392 | AU18: 490 | AV18: 462 | AZ18: 270 | BA18: 380 | BL18: 378 | BQ18: 378 | BR18: 406 | CD18: 316
A19: Fuhre | B19: Jan | C19: Vikersund IF | D19: Trønderhopp | E19: M NC Elite | F19: 1991 | G19: Buskerud | H19: =SUM(I19+J19) -> 10049 | I19: 3058 | J19: =SUM(K19:CX19) -> 6991 | M19: 438 | N19: 406 | R19: 505 | U19: 360 | AD19: 378 | AE19: 414 | AG19: 422 | AH19: 438 | AQ19: 342 | AU19: 454 | AV19: 438 | BC19: 446 | BD19: 446 | BL19: 406 | BQ19: 372 | BR19: 360 | CD19: 366
A20: Bergquist | B20: Hans Petter | C20: Aurskog/Finstadbru | D20: Kollenhopp | E20: M NC Elite | F20: 1994 | G20: Akershus | H20: =SUM(I20+J20) -> 9298 | I20: 1881 | J20: =SUM(K20:CX20) -> 7417 | M20: 414 | Q20: 300 | S20: 290 | W20: 574 | X20: 440 | AD20: 366 | AE20: 366 | AG20: 462 | AH20: 500 | AQ20: 378 | AY20: 354 | BC20: 462 | BD20: 454 | BL20: 414 | BM20: 250 | BQ20: 406 | BR20: 422 | CA20: 235 | CD20: 330
A21: Halvorsen | B21: Espen Enger | C21: Eidsvold Værks Sk | D21: Lillehammerhopp | E21: M NC Elite | F21: 1990 | G21: Akershus | H21: =SUM(I21+J21) -> 8630 | I21: 3144 | J21: =SUM(K21:CX21) -> 5486 | M21: 360 | N21: 366 | AD21: 384 | AE21: 396 | AG21: 454 | AH21: 490 | AQ21: 316 | AU21: 446 | AV21: 430 | BC21: 480 | BD21: 480 | BL21: 446 | CD21: 438
A22: Skinnes | B22: Stian Andrè | C22: Gjerpenkollen hoppklubb | D22: Flying Team Vikersund | E22: M NC Elite | F22: 1991 | G22: Buskerud | H22: =SUM(I22+J22) -> 8565 | I22: 2661 | J22: =SUM(K22:CX22) -> 5904 | M22: 462 | N22: 430 | U22: 290 | AD22: 406 | AE22: 372 | AG22: 430 | AH22: 398 | AQ22: 246 | AU22: 438 | AV22: 480 | BC22: 470 | BD22: 470 | BQ22: 366 | BR22: 378 | CD22: 268
A23: Hammer | B23: Tord Markussen | C23: Tromsø Skiklub | D23: Trønderhopp | E23: M NC Elite | F23: 1988 | G23: Troms | H23: =SUM(I23+J23) -> 8442 | I23: 1854 | J23: =SUM(K23:CX23) -> 6588 | M23: 378 | N23: 372 | AD23: 398 | AE23: 348 | AG23: 240 | AH23: 300 | AU23: 500 | AV23: 500 | AZ23: 420 | BA23: 535 | BJ23: 340 | BK23: 240 | BQ23: 392 | BR23: 366 | BT23: 875 | CD23: 384
A24: Søberg | B24: Sigurd Nymoen | C24: Furnes Skil.for | D24: Lillehammerhopp | E24: M NC Elite | F24: 1994 | G24: Hedmark | H24: =SUM(I24+J24) -> 8005 | I24: 1528 | J24: =SUM(K24:CX24) -> 6477 | M24: 490 | N24: 414 | R24: 644 | U24: 602 | W24: 616 | X24: 623 | AD24: 360 | AE24: 430 | AQ24: 204 | BA24: 420 | BL24: 422 | BM24: 195 | BQ24: 430 | BR24: 372 | CA24: 255
A25: Romøren | B25: Bjørn Einar | C25: Hosle IL | D25: Kollenhopp | E25: M NC Elite | F25: 1981 | G25: Akershus | H25: =SUM(I25+J25) -> 7747 | I25: 932 | J25: =SUM(K25:CX25) -> 6815 | M25: 372 | N25: 360 | AD25: 336 | AE25: 406 | AG25: 438 | AQ25: 354 | BL25: 490 | BQ25: 470 | BR25: 490 | BW25: 658 | BX25: 700 | BZ25: 630 | CB25: 441 | CC25: 670
A26: Nedrejord | B26: Ole Mathis | C26: Nordlys IL | D26: NTG | E26: M NC Elite | F26: 1996 | G26: Finnmark | H26: =SUM(I26+J26) -> 7550 | I26: 1237 | J26: =SUM(K26:CX26) -> 6313 | N26: 265 | Q26: 290 | S26: 300 | AD26: 470 | AE26: 422 | AG26: 480 | AH26: 446 | AQ26: 406 | BC26: 454 | BD26: 392 | BL26: 480 | BM26: 270 | BS26: 1066 | CA26: 230 | CD26: 342
A27: Pedersen | B27: Robin | C27: Stålkameratene IL | D27: Trønderhopp | E27: M NC Elite | F27: 1996 | G27: Nordland | H27: =SUM(I27+J27) -> 7510 | I27: 879 | J27: =SUM(K27:CX27) -> 6631 | M27: 280 | N27: 280 | Q27: 215 | S27: 230 | AD27: 300 | AE27: 240 | AG27: 500 | AH27: 462 | AQ27: 304 | AU27: 430 | AV27: 470 | BC27: 438 | BD27: 414 | BL27: 430 | BM27: 245 | BQ27: 446 | BR27: 392 | CA27: 245 | CD27: 310
A28: Granerud | B28: Halvor Egner | C28: Asker Skiklubb | D28: Kollenhopp | E28: M NC A | F28: 1996 | G28: Akershus | H28: =SUM(I28+J28) -> 7303 | I28: 1818 | J28: =SUM(K28:CX28) -> 5485 | M28: 300 | N28: 230 | Q28: 145 | S28: 220 | AD28: 265 | AE28: 255 | AG28: 392 | AH28: 406 | AQ28: 198 | BC28: 200 | BD28: 270 | BL28: 300 | BM28: 300 | BN28: 400 | BQ28: 462 | BR28: 438 | CA28: 290 | CD28: 414
A29: Søgård | B29: Jonas Gropen | C29: Løten/Nordbygda | D29: NTG | E29: M NC Elite | F29: 1996 | G29: Hedmark | H29: =SUM(I29+J29) -> 7276 | I29: 1440 | J29: =SUM(K29:CX29) -> 5836 | M29: 265 | N29: 300 | Q29: 225 | S29: 270 | AD29: 462 | AE29: 392 | AG29: 470 | AH29: 422 | AQ29: 336 | AU29: 414 | AV29: 422 | BC29: 422 | BD29: 430 | BL29: 398 | BM29: 260 | CD29: 348
A30: Jacobsen | B30: Anders | C30: Ringkollen Skiklubb | D30: Flying Team Vikersund | E30: M NC Elite | G30: Buskerud | H30: =SUM(I30+J30) -> 7247 | I30: 0 | J30: =SUM(K30:CX30) -> 7247 | P30: 504 | T30: 476 | V30: 650 | AA30: 504 | AB30: 532 | AC30: 670 | AF30: 770 | AM30: 490 | AN30: 511 | AQ30: 430 | BB30: 525 | BI30: 455 | BP30: 730
A31: Røe | B31: Espen | C31: Tolga IL | D31: Trønderhopp | E31: M NC Elite | F31: 1993 | G31: Hedmark | H31: =SUM(I31+J31) -> 6618 | I31: 1982 | J31: =SUM(K31:CX31) -> 4636 | M31: 430 | N31: 422 | AD31: 354 | AE31: 384 | AH31: 392 | AQ31: 216 | AU31: 462 | AV31: 414 | BC31: 414 | BD31: 398 | BL31: 372 | CD31: 378
A32: Strand | B32: Knut Jokerud | C32: Vikersund IF | D32: Flying Team Vikersund | E32: M NC A | F32: 1996 | G32: Buskerud | H32: =SUM(I32+J32) -> 6248 | I32: 1677 | J32: =SUM(K32:CX32) -> 4571 | M32: 366 | N32: 378 | Q32: 265 | S32: 265 | AD32: 348 | AE32: 336 | AG32: 225 | AH32: 235 | AQ32: 280 | AU32: 245 | AV32: 270 | BL32: 210 | BM32: 185 | BQ32: 265 | BR32: 255 | CA32: 145 | CD32: 298
A33: Sorsell | B33: Kim Rene Elverum | C33: Ullensaker Skikl | D33: Kollenhopp | E33: M NC A | F33: 1988 | G33: Akershus | H33: =SUM(I33+J33) -> 5944 | I33: 1778 | J33: =SUM(K33:CX33) -> 4166 | R33: 320 | U33: 420 | AG33: 446 | AH33: 454 | AQ33: 268 | BH33: 380 | BJ33: 350 | BK33: 390 | BQ33: 384 | BR33: 430 | CD33: 324
A34: Hulløen | B34: Bendik Netland | C34: Oddersjaa SSK | D34: NTG | E34: M NC A | F34: 1996 | G34: Agder/Rogaland | H34: =SUM(I34+J34) -> 5831 | I34: 1589 | J34: =SUM(K34:CX34) -> 4242 | M34: 195 | N34: 195 | Q34: 175 | S34: 180 | AD34: 125 | AE34: 280 | AG34: 290 | AH34: 230 | AQ34: 222 | AU34: 300 | AV34: 250 | BC34: 265 | BD34: 235 | BL34: 225 | BM34: 210 | BQ34: 225 | BR34: 230 | CA34: 170 | CD34: 240
A35: Engen | B35: Klaus Ovlien | C35: Aurskog/Finstadbru | D35: Kollenhopp | E35: M NC Elite | F35: 1992 | G35: Akershus | H35: =SUM(I35+J35) -> 5831 | I35: 1665 | J35: =SUM(K35:CX35) -> 4166 | M35: 260 | N35: 270 | AD35: 280 | AE35: 120 | AQ35: 348 | AU35: 480 | AV35: 454 | BC35: 430 | BD35: 438 | BL35: 384 | BQ35: 360 | CD35: 342
A36: Aune | B36: Joakim | C36: Byåsen IL | D36: Trønderhopp | E36: M NC A | F36: 1993 | G36: S.Tr.lag | H36: =SUM(I36+J36) -> 5692 | I36: 2100 | J36: =SUM(K36:CX36) -> 3592 | M36: 240 | N36: 290 | AE36: 290 | AG36: 406 | AH36: 414 | AQ36: 240 | BC36: 280 | BD36: 300 | BL36: 250 | BQ36: 240 | BR36: 270 | CD36: 372
A37: Stenseth | B37: Mathis Rebne | C37: Furnes Skil.for | D37: NTG | E37: M NC A | F37: 1995 | G37: Hedmark | H37: =SUM(I37+J37) -> 5605 | I37: 1509 | J37: =SUM(K37:CX37) -> 4096 | Q37: 235 | S37: 255 | AD37: 270 | AE37: 245 | AQ37: 310 | BC37: 300 | BD37: 422 | BL37: 462 | BM37: 265 | BQ37: 398 | BR37: 446 | CA37: 260 | CD37: 228
A38: Bjøreng | B38: Joacim Ødegård | C38: Røykenhopp | D38: Flying Team Vikersund | E38: M NC A | F38: 1995 | G38: Buskerud | H38: =SUM(I38+J38) -> 5428 | I38: 1155 | J38: =SUM(K38:CX38) -> 4273 | M38: 170 | N38: 245 | Q38: 260 | S38: 245 | AD38: 240 | AE38: 250 | AG38: 230 | AH38: 250 | AQ38: 234 | AU38: 290 | AV38: 280 | BC38: 255 | BD38: 280 | BQ38: 260 | BR38: 280 | CA38: 200 | CD38: 304
A39: Madsen | B39: Jørgen | C39: Skimt IL | D39: Kollenhopp | E39: M NC A | F39: 1994 | G39: Akershus | H39: =SUM(I39+J39) -> 5330 | I39: 1358 | J39: =SUM(K39:CX39) -> 3972 | M39: 205 | N39: 260 | Q39: 155 | S39: 225 | AD39: 245 | AE39: 300 | AG39: 205 | AH39: 255 | AQ39: 262 | BC39: 290 | BD39: 290 | BL39: 280 | BM39: 215 | BQ39: 290 | BR39: 300 | CA39: 195
A40: Berger | B40: Lars Brodshaug | C40: Eidsvold Værks Sk | D40: NTG | E40: M NC A | F40: 1995 | G40: Akershus | H40: =SUM(I40+J40) -> 5187 | I40: 1073 | J40: =SUM(K40:CX40) -> 4114 | M40: 200 | N40: 240 | Q40: 245 | S40: 250 | AD40: 260 | AE40: 235 | AG40: 270 | AH40: 270 | AQ40: 324 | AU40: 260 | AV40: 300 | BC40: 260 | BD40: 255 | BL40: 265 | BM40: 240 | CA40: 240
A41: Sumstad | B41: Are | C41: Sør-Fron IL | D41: NTG | E41: M NC A | F41: 1996 | G41: Oppland | H41: =SUM(I41+J41) -> 4868 | I41: 625 | J41: =SUM(K41:CX41) -> 4243 | M41: 185 | N41: 225 | Q41: 235 | S41: 240 | AD41: 220 | AE41: 190 | AG41: 255 | AH41: 210 | AQ41: 298 | AU41: 280 | AV41: 290 | BC41: 245 | BD41: 245 | BL41: 260 | BM41: 220 | CA41: 215 | CD41: 430
A42: Sklett | B42: Vegard Haukø | C42: Grong IL | D42: Trønderhopp | E42: M NC Elite | F42: 1986 | G42: N.Tr.lag | H42: =SUM(I42+J42) -> 4852 | I42: 392 | J42: =SUM(K42:CX42) -> 4460 | M42: 384 | N42: 406 | AD42: 342 | AE42: 342 | AG42: 398 | AH42: 470 | AQ42: 192 | AU42: 422 | AV42: 446 | BC42: 406 | BD42: 406 | CD42: 246
A43: Henriksen | B43: Andreas Tyholt | C43: Stjørdals-Blink IL | D43: Trønderhopp | E43: M NC A | F43: 1994 | G43: N.Tr.lag | H43: =SUM(I43+J43) -> 4691 | I43: 439 | J43: =SUM(K43:CX43) -> 4252 | AD43: 290 | AE43: 270 | AG43: 300 | AH43: 290 | AQ43: 330 | AU43: 270 | AV43: 240 | BC43: 280 | BD43: 250 | BL43: 392 | BM43: 190 | BQ43: 280 | BR43: 290 | CA43: 220 | CD43: 360
A44: Hellerud | B44: Andreas Myhre | C44: Magnor UL | D44: Lillehammerhopp | E44: M NC A | F44: 1992 | G44: Hedmark | H44: =SUM(I44+J44) -> 4626 | I44: 1546 | J44: =SUM(K44:CX44) -> 3080 | M44: 255 | N44: 205 | AD44: 225 | AE44: 205 | AG44: 205 | AH44: 240 | AU44: 210 | AV44: 255 | BC44: 240 | BD44: 270 | BL44: 235 | BQ44: 270 | BR44: 265
A45: Marø | B45: Idar | C45: Alta IF | D45: NTG | E45: M NC A | F45: 1995 | G45: Finnmark | H45: =SUM(I45+J45) -> 4612 | I45: 917 | J45: =SUM(K45:CX45) -> 3695 | M45: 255 | N45: 160 | Q45: 250 | S45: 160 | AD45: 205 | AE45: 225 | AG45: 195 | AH45: 195 | AQ45: 286 | AT45: 40 | BC45: 235 | BD45: 200 | BL45: 220 | BM45: 210 | BQ45: 255 | BR45: 250 | CA45: 120 | CD45: 234
A46: Vellupillai | B46: Rishi | C46: Liabygda IL | D46: NTG | E46: M NC A | F46: 1997 | G46: N.Tr.lag | H46: =SUM(I46+J46) -> 4514 | I46: 500 | J46: =SUM(K46:CX46) -> 4014 | M46: 235 | N46: 190 | Q46: 165 | S46: 170 | AD46: 215 | AE46: 215 | AG46: 255 | AH46: 245 | AQ46: 292 | AU46: 235 | AV46: 265 | BC46: 250 | BD46: 270 | BL46: 245 | BM46: 235 | CA46: 280 | CD46: 252
A47: Øvregård | B47: Jonas Schøien | C47: Vålerenga Ski | D47: Kollenhopp | E47: M NC A | F47: 1994 | G47: Oslo | H47: =SUM(I47+J47) -> 4509 | I47: 1700 | J47: =SUM(K47:CX47) -> 2809 | M47: 230 | N47: 210 | Q47: 185 | S47: 235 | AD47: 190 | AE47: 220 | AQ47: 210 | BL47: 200 | BQ47: 250 | BR47: 260 | CA47: 265 | CD47: 354
A48: Henningsen | B48: Alexander | C48: Tromsø Skiklub | D48: Lillehammerhopp | E48: M NC A | F48: 1994 | G48: Troms | H48: =SUM(I48+J48) -> 4480 | I48: 1157 | J48: =SUM(K48:CX48) -> 3323 | M48: 270 | N48: 255 | Q48: 190 | S48: 210 | AD48: 200 | AE48: 230 | AG48: 185 | AH48: 155 | AU48: 195 | AV48: 230 | BC48: 195 | BD48: 215 | BL48: 230 | BM48: 180 | CA48: 195 | CD48: 188
A49: Bråtane | B49: Sondre Vestøl | C49: Sogne SK | D49: Trønderhopp | E49: M NC A | F49: 1996 | G49: Agder/Rogaland | H49: =SUM(I49+J49) -> 4468 | I49: 1272 | J49: =SUM(K49:CX49) -> 3196 | M49: 245 | N49: 255 | AD49: 250 | AE49: 260 | AG49: 260 | AH49: 280 | AQ49: 366 | AU49: 250 | AV49: 260 | BL49: 290 | BM49: 255 | CA49: 225
A50: Inngjerdingen | B50: Christian | C50: Øvrevoll/Hosle IL | D50: Kollenhopp | E50: M NC A | F50: 1996 | G50: Oslo | H50: =SUM(I50+J50) -> 4439 | I50: 1122 | J50: =SUM(K50:CX50) -> 3317 | M50: 215 | N50: 165 | Q50: 180 | S50: 145 | AD50: 170 | AE50: 165 | AG50: 210 | AH50: 220 | AQ50: 182 | AU50: 240 | AV50: 220 | BC50: 160 | BD50: 195 | BL50: 140 | BM50: 110 | BQ50: 205 | BR50: 235 | CA50: 160
A51: Pedersen | B51: Peder Nævestad | C51: Byaasen SK | D51: Trønderhopp | E51: M NC A | F51: 1995 | G51: S.Tr.lag | H51: =SUM(I51+J51) -> 3955 | I51: 871 | J51: =SUM(K51:CX51) -> 3084 | M51: 200 | N51: 190 | AD51: 200 | AE51: 190 | AG51: 245 | AH51: 265 | AQ51: 414 | AU51: 255 | AV51: 225 | BL51: 255 | BM51: 200 | BQ51: 220 | BR51: 225
A52: Haukedal | B52: Rickard | C52: Bækkelaget SK | D52: Kollenhopp | E52: M NC A | F52: 1996 | G52: Oslo | H52: =SUM(I52+J52) -> 3855 | I52: 1280 | J52: =SUM(K52:CX52) -> 2575 | M52: 135 | AD52: 180 | AE52: 195 | AG52: 185 | AH52: 185 | AU52: 200 | AV52: 205 | BC52: 185 | BD52: 185 | BL52: 205 | BM52: 140 | BQ52: 235 | BR52: 245 | CA52: 95
A53: Loe | B53: Jostein | C53: Raufoss IL | D53: Lillehammerhopp | E53: M NC A | F53: 1994 | G53: Oppland | H53: =SUM(I53+J53) -> 3697 | I53: 977 | J53: =SUM(K53:CX53) -> 2720 | M53: 195 | N53: 185 | U53: 175 | AD53: 160 | AE53: 175 | AG53: 190 | AH53: 190 | BD53: 170 | BF53: 475 | BG53: 200 | BM53: 155 | BQ53: 230 | BR53: 220
A54: Stensgård | B54: Kristian | C54: Søre Ål IL | D54: NTG | E54: M NC A | F54: 1996 | G54: Oppland | H54: =SUM(I54+J54) -> 3672 | I54: 355 | J54: =SUM(K54:CX54) -> 3317 | N54: 240 | Q54: 170 | AD54: 255 | AE54: 265 | AG54: 280 | AH54: 260 | AQ54: 274 | AU54: 265 | AV54: 250 | BC54: 210 | BL54: 270 | BM54: 165 | CA54: 185 | CD54: 228
A55: Sørli | B55: Kristoffer | C55: Tolga IL | D55: Trønderhopp | E55: M NC A | F55: 1993 | G55: Hedmark | H55: =SUM(I55+J55) -> 3466 | I55: 793 | J55: =SUM(K55:CX55) -> 2673 | M55: 220 | N55: 200 | AD55: 195 | AE55: 160 | AG55: 265 | AH55: 200 | AQ55: 178 | AU55: 220 | AV55: 215 | BC55: 170 | BD55: 235 | BQ55: 215 | BR55: 200
A56: Randen | B56: Jacob Tjåland | C56: Folldal IL | D56: NTG | E56: M NC A | F56: 1996 | G56: Hedmark | H56: =SUM(I56+J56) -> 3313 | I56: 304 | J56: =SUM(K56:CX56) -> 3009 | M56: 175 | N56: 180 | AD56: 175 | AE56: 155 | AG56: 215 | AH56: 215 | AQ56: 228 | AU56: 215 | AV56: 210 | BC56: 205 | BD56: 180 | BL56: 215 | BM56: 175 | CA56: 180 | CD56: 286
A57: Livelten | B57: Adrian Sørensen | C57: IL Hjelset-Fram | D57: Lillehammerhopp | E57: M NC A | F57: 1994 | G57: Møre og Romsdal | H57: =SUM(I57+J57) -> 3228 | I57: 717 | J57: =SUM(K57:CX57) -> 2511 | M57: 155 | N57: 155 | AD57: 165 | AE57: 185 | AG57: 165 | AH57: 170 | AU57: 230 | AV57: 235 | BC57: 195 | BD57: 225 | BL57: 155 | BM57: 95 | CA57: 165 | CD57: 216
A58: Riiber | B58: Jarl Magnus | C58: Heming IL | D58: Kollenhopp | E58: M NC A | F58: 1997 | G58: Oslo | H58: =SUM(I58+J58) -> 3179 | I58: 1641 | J58: =SUM(K58:CX58) -> 1538 | M58: 392 | N58: 384 | BQ58: 300 | BR58: 462
A59: Brenna | B59: Christian | C59: Hakadal IL | D59: Kollenhopp | E59: M NC A | F59: 1995 | G59: Akershus | H59: =SUM(I59+J59) -> 3152 | I59: 988 | J59: =SUM(K59:CX59) -> 2164 | U59: 170 | AD59: 155 | AE59: 135 | AG59: 160 | AH59: 84 | AU59: 190 | AV59: 200 | BC59: 185 | BD59: 190 | BM59: 80 | BQ59: 195 | BR59: 210 | CA59: 210
A60: Lian | B60: Kristian | C60: Ivrig IL | D60: Lillehammerhopp | E60: M NC A | F60: 1994 | G60: Telemark/Vestfold | H60: =SUM(I60+J60) -> 3123 | I60: 1133 | J60: =SUM(K60:CX60) -> 1990 | M60: 190 | N60: 200 | AE60: 160 | AG60: 160 | AH60: 165 | AU60: 205 | AV60: 195 | BC60: 215 | BD60: 205 | BL60: 150 | BM60: 145
A61: Hoff | B61: Andreas | C61: Raufoss IL | D61: Lillehammerhopp | E61: M NC A | F61: 1993 | G61: Oppland | H61: =SUM(I61+J61) -> 2826 | I61: 901 | J61: =SUM(K61:CX61) -> 1925 | M61: 180 | N61: 175 | U61: 185 | AD61: 175 | AE61: 130 | AG61: 170 | AH61: 150 | AU61: 225 | AV61: 200 | BC61: 175 | BD61: 160
A62: Øvregård | B62: Jens Schøien | C62: Vålerenga Ski | D62: Kollenhopp | E62: M NC B | F62: 1996 | G62: Oslo | H62: =SUM(I62+J62) -> 2785 | I62: 685 | J62: =SUM(K62:CX62) -> 2100 | M62: 140 | N62: 130 | AD62: 150 | AE62: 180 | AG62: 155 | AH62: 160 | BC62: 150 | BD62: 210 | BL62: 145 | BM62: 115 | BQ62: 245 | BR62: 240 | CA62: 80
A63: Næsvold | B63: Kjell Andreas | C63: Røykenhopp | D63: Flying Team Vikersund | E63: M NC A | F63: 1996 | G63: Buskerud | H63: =SUM(I63+J63) -> 2682 | I63: 650 | J63: =SUM(K63:CX63) -> 2032 | M63: 160 | N63: 135 | AD63: 162 | AE63: 165 | AG63: 180 | AH63: 150 | AU63: 150 | AV63: 190 | BC63: 155 | BD63: 165 | BQ63: 165 | BR63: 170 | CA63: 85
A64: Hafslund | B64: Oskar Alexander | C64: Nordbygda/Løtenski | D64: NTG | E64: M NC A | F64: 1997 | G64: Hedmark | H64: =SUM(I64+J64) -> 2677 | I64: 415 | J64: =SUM(K64:CX64) -> 2262 | M64: 170 | N64: 165 | U64: 190 | AD64: 180 | AE64: 180 | AG64: 190 | AH64: 175 | AT64: 50 | BC64: 225 | BD64: 220 | BM64: 150 | CA64: 175 | CD64: 192
A65: Langård | B65: Jonas | C65: Hurdal IL | D65: Lillehammerhopp | E65: M NC B | F65: 1993 | G65: Akershus | H65: =SUM(I65+J65) -> 2636 | I65: 724 | J65: =SUM(K65:CX65) -> 1912 | N65: 150 | AD65: 135 | AE65: 145 | AG65: 145 | AH65: 180 | BC65: 230 | BD65: 240 | BL65: 195 | BQ65: 160 | BR65: 150 | CD65: 182
A66: Westerheim | B66: Oskar P | C66: Bækkelaget SK | D66: Kollenhopp | E66: M NC B | F66: 1996 | G66: Oslo | H66: =SUM(I66+J66) -> 2628 | I66: 839 | J66: =SUM(K66:CX66) -> 1789 | M66: 130 | N66: 125 | AD66: 130 | AE66: 125 | AG66: 72 | AH66: 109 | BC66: 103 | BD66: 155 | BL66: 175 | BM66: 135 | BQ66: 190 | BR66: 200 | CA66: 140
A67: Sandell | B67: Jonas | C67: Tromsø Skiklub | D67: Trønderhopp | E67: M NC A | F67: 1995 | G67: Troms | H67: =SUM(I67+J67) -> 2559 | I67: 1379 | J67: =SUM(K67:CX67) -> 1180 | M67: 290 | AD67: 230 | AE67: 200 | AG67: 235 | AH67: 225
A68: Lindvik | B68: Marius | C68: Rælingen skiklubb | D68: Kollenhopp | E68: M NC B | F68: 1998 | G68: Akershus | H68: =SUM(I68+J68) -> 2470 | I68: 455 | J68: =SUM(K68:CX68) -> 2015 | M68: 135 | N68: 175 | AD68: 190 | AE68: 200 | AG68: 165 | AH68: 200 | BC68: 180 | BD68: 150 | BE68: 150 | BL68: 240 | BM68: 230
A69: Korody | B69: Christian | C69: Jardar IL | D69: Kollenhopp | E69: M NC A | F69: 1993 | G69: Akershus | H69: =SUM(I69+J69) -> 2437 | I69: 727 | J69: =SUM(K69:CX69) -> 1710 | M69: 155 | N69: 170 | AD69: 160 | AE69: 170 | AG69: 150 | AH69: 175 | BC69: 145 | BL69: 160 | BQ69: 210 | BR69: 215
A70: Hagemoen | B70: Leif Marius | C70: Gausdal Skilag | D70: NTG | E70: M NC B | F70: 1995 | G70: Oppland | H70: =SUM(I70+J70) -> 2433 | I70: 700 | J70: =SUM(K70:CX70) -> 1733 | M70: 175 | N70: 170 | AD70: 235 | AE70: 175 | AQ70: 188 | BC70: 200 | BD70: 200 | BQ70: 200 | BR70: 190
A71: Jeremiassen | B71: Steffen | C71: Skimt IL | D71: Kollenhopp | E71: M NC B | F71: 1997 | G71: Akershus | H71: =SUM(I71+J71) -> 2430 | I71: 1021 | J71: =SUM(K71:CX71) -> 1409 | M71: 145 | N71: 145 | AD71: 140 | AE71: 140 | AG71: 130 | AH71: 96 | BC71: 64 | BD71: 80 | BL71: 109 | BM71: 40 | BQ71: 125 | BR71: 130 | CA71: 65
A72: Ihle | B72: Magnus | C72: Jardar IL | D72: Kollenhopp | E72: M NC B | F72: 1997 | G72: Akershus | H72: =SUM(I72+J72) -> 2350 | I72: 630 | J72: =SUM(K72:CX72) -> 1720 | M72: 165 | N72: 135 | AD72: 145 | AE72: 150 | BC72: 145 | BD72: 165 | BL72: 180 | BM72: 160 | BQ72: 150 | BR72: 165 | CA72: 160
A73: Østlie | B73: Ola Walle | C73: Løten/Nordbygda | D73: Hedmarkhopp | E73: M NC B | F73: 1995 | G73: Hedmark | H73: =SUM(I73+J73) -> 2243 | I73: 468 | J73: =SUM(K73:CX73) -> 1775 | M73: 120 | N73: 115 | AD73: 170 | AE73: 175 | AG73: 170 | AH73: 145 | BC73: 120 | BD73: 160 | BL73: 145 | BM73: 120 | BQ73: 175 | BR73: 160
A74: Myhren | B74: Mats Bjerke | C74: Søre Ål IL | D74: NTG | E74: M NC B | F74: 1997 | G74: Oppland | H74: =SUM(I74+J74) -> 2186 | I74: 327 | J74: =SUM(K74:CX74) -> 1859 | M74: 106 | N74: 106 | AD74: 130 | AE74: 115 | AG74: 175 | AH74: 155 | AT74: 45 | BC74: 190 | BD74: 112 | BL74: 160 | BM74: 90 | BQ74: 170 | BR74: 175 | CA74: 130
A75: Bakke | B75: Edvart Myrvang | C75: Hedalen IL | D75: Flying Team Vikersund | E75: M NC A | F75: 1996 | G75: Buskerud | H75: =SUM(I75+J75) -> 2158 | I75: 783 | J75: =SUM(K75:CX75) -> 1375 | M75: 160 | N75: 140 | Q75: 150 | S75: 135 | AD75: 210 | AE75: 155 | AG75: 220 | AH75: 205
A76: Melnes | B76: Sindre Beite | C76: Blaker IL | D76: NTG | E76: M NC B | F76: 1995 | G76: Akershus | H76: =SUM(I76+J76) -> 2133 | I76: 366 | J76: =SUM(K76:CX76) -> 1767 | M76: 145 | N76: 140 | AD76: 155 | AE76: 140 | AG76: 145 | AH76: 125 | BC76: 145 | BD76: 112 | BL76: 150 | BM76: 70 | BQ76: 140 | BR76: 180 | CA76: 120
A77: Ringen | B77: Sondre | C77: Bækkelaget SK | D77: Kollenhopp | E77: M NC B | F77: 1996 | G77: Oslo | H77: =SUM(I77+J77) -> 2099 | I77: 938 | J77: =SUM(K77:CX77) -> 1161 | M77: 180 | N77: 155 | AD77: 125 | AE77: 130 | AG77: 96 | AH77: 160 | AU77: 155 | AV77: 160
A78: Haug | B78: Tor Kristian | C78: Byåsen IL | D78: Trønderhopp | E78: M NC A | F78: 1991 | G78: S.Tr.lag | H78: =SUM(I78+J78) -> 2015 | I78: 140 | J78: =SUM(K78:CX78) -> 1875 | U78: 180 | AD78: 150 | AE78: 150 | AG78: 160 | AH78: 160 | AU78: 165 | AV78: 165 | BC78: 165 | BD78: 175 | BQ78: 200 | BR78: 205
A79: Myhre | B79: Sondre | C79: Raufoss IL | D79: Lillehammerhopp | E79: M NC A | F79: 1993 | G79: Oppland | H79: =SUM(I79+J79) -> 1920 | I79: 0 | J79: =SUM(K79:CX79) -> 1920 | M79: 210 | N79: 220 | AD79: 185 | AE79: 210 | AG79: 175 | AH79: 180 | BF79: 505 | BG79: 235
A80: Buskum | B80: Andreas Granerud | C80: Raufoss IL | D80: NTG | E80: M NC B | F80: 1996 | G80: Oppland | H80: =SUM(I80+J80) -> 1916 | I80: 410 | J80: =SUM(K80:CX80) -> 1506 | M80: 225 | N80: 215 | Q80: 220 | S80: 140 | AQ80: 252 | CA80: 250 | CD80: 204
A81: Fredheim | B81: Kenneth Henningsmo | C81: Nansen IL | D81: Trønderhopp | E81: M NC B | F81: 1997 | G81: Hedmark | H81: =SUM(I81+J81) -> 1832 | I81: 373 | J81: =SUM(K81:CX81) -> 1459 | M81: 109 | N81: 109 | AG81: 120 | AH81: 170 | AU81: 120 | AV81: 170 | BC81: 106 | BD81: 140 | BL81: 190 | BM81: 75 | CA81: 150
A82: Flotten | B82: Erlend | C82: Tormod Skilag | D82: NTG | E82: M NC B | F82: 1996 | G82: Oppland | H82: =SUM(I82+J82) -> 1711 | I82: 380 | J82: =SUM(K82:CX82) -> 1331 | M82: 125 | N82: 150 | AD82: 106 | AT82: 32 | BC82: 96 | BD82: 72 | BL82: 115 | BM82: 65 | BQ82: 135 | BR82: 155 | CD82: 280
A83: Eriksen | B83: Espen Alexander | C83: Tromsø Skiklub | D83: Trønderhopp | E83: M NC A | F83: 1994 | G83: Troms | H83: =SUM(I83+J83) -> 1517 | I83: 590 | J83: =SUM(K83:CX83) -> 927 | M83: 112 | N83: 130 | AD83: 135 | AE83: 135 | AG83: 135 | AH83: 165 | AV83: 115
A84: Danielsen | B84: Stian | C84: Alta IF | D84: Trønderhopp | E84: M NC A | F84: 1996 | G84: Finnmark | H84: =SUM(I84+J84) -> 1458 | I84: 0 | J84: =SUM(K84:CX84) -> 1458 | M84: 150 | N84: 180 | AU84: 200 | AV84: 175 | BC84: 220 | BL84: 165 | BM84: 170 | CD84: 198
A85: Knapstad | B85: Anders | C85: Ivrig IL | D85: Flying Team Vikersund | E85: M NC B | F85: 1996 | G85: Telemark/Vestfold | H85: =SUM(I85+J85) -> 1445 | I85: 452 | J85: =SUM(K85:CX85) -> 993 | M85: 165 | N85: 125 | AD85: 145 | AE85: 125 | AG85: 100 | AH85: 115 | AU85: 112 | AV85: 106
A86: Svorkdal | B86: Tormod | C86: Orkdal IL | D86: Trønderhopp | E86: M NC B | F86: 1994 | G86: S.Tr.lag | H86: =SUM(I86+J86) -> 1445 | I86: 145 | J86: =SUM(K86:CX86) -> 1300 | AU86: 180 | AV86: 180 | BC86: 160 | BD86: 145 | BL86: 170 | BM86: 105 | BQ86: 145 | BR86: 140 | CA86: 75
A87: Dahl | B87: Oliver | C87: Byåsen IL | D87: Trønderhopp | E87: M NC B | F87: 1997 | G87: S.Tr.lag | H87: =SUM(I87+J87) -> 1369 | I87: 208 | J87: =SUM(K87:CX87) -> 1161 | AU87: 125 | AV87: 135 | BC87: 115 | BD87: 135 | BL87: 200 | BM87: 130 | CA87: 105 | CD87: 216
A88: Vedal | B88: Jørgen | C88: Rælingen skiklubb | D88: NTG | E88: M NC B | G88: Akershus | H88: =SUM(I88+J88) -> 1366 | I88: 275 | J88: =SUM(K88:CX88) -> 1091 | AE88: 120 | AG88: 120 | AH88: 106 | AT88: 35 | BD88: 170 | BL88: 135 | BM88: 125 | BQ88: 155 | CA88: 125
A89: Johansen | B89: Oskar Bærheim | C89: Lensbygda Sp.klubb | D89: Trønderhopp | E89: M NC B | F89: 1996 | G89: Oppland | H89: =SUM(I89+J89) -> 1335 | I89: 347 | J89: =SUM(K89:CX89) -> 988 | AG89: 76 | AH89: 130 | AU89: 145 | AV89: 145 | BC89: 112 | BD89: 115 | BL89: 165 | BM89: 100
A90: Pettersen | B90: Morten | C90: Byåsen IL | D90: Trønderhopp | E90: M NC B | F90: 1995 | G90: S.Tr.lag | H90: =SUM(I90+J90) -> 1294 | I90: 170 | J90: =SUM(K90:CX90) -> 1124 | AG90: 125 | AH90: 135 | AU90: 160 | AV90: 150 | BC90: 109 | BD90: 125 | BL90: 125 | BM90: 60 | CA90: 135
A91: Lippestad | B91: Carl Henning | C91: Bækkelaget SK | D91: Kollenhopp | E91: M NC B | F91: 1998 | G91: Oslo | H91: =SUM(I91+J91) -> 1268 | I91: 293 | J91: =SUM(K91:CX91) -> 975 | M91: 150 | N91: 160 | AD91: 140 | AE91: 145 | AG91: 103 | AH91: 112 | BC91: 165
A92: Lunnan | B92: Håvard Svingen | C92: Skatval Skilag | D92: Trønderhopp | E92: M NC B | F92: 1996 | G92: N.Tr.lag | H92: =SUM(I92+J92) -> 1225 | I92: 135 | J92: =SUM(K92:CX92) -> 1090 | AG92: 115 | AH92: 120 | AU92: 170 | AV92: 155 | BC92: 96 | BD92: 84 | BL92: 155 | BM92: 85 | CA92: 110
A93: Viken | B93: Jonas | C93: Steinkjer Skiklubb | D93: Trønderhopp | E93: M NC B | F93: 1997 | G93: N.Tr.lag | H93: =SUM(I93+J93) -> 1193 | I93: 432 | J93: =SUM(K93:CX93) -> 761 | N93: 120 | AG93: 68 | AH93: 140 | AU93: 106 | AV93: 112 | BL93: 120 | CA93: 95
A94: Torkildsen | B94: Borgar Aas | C94: Vålerenga Ski | D94: Kollenhopp | E94: M NC B | G94: Akershus | H94: =SUM(I94+J94) -> 1172 | I94: 368 | J94: =SUM(K94:CX94) -> 804 | M94: 92 | AD94: 112 | AE94: 106 | BC94: 80 | BD94: 56 | BL94: 103 | BQ94: 120 | BR94: 135
A95: Olsby | B95: Espen | C95: Lensbygda Sp.klubb | E95: M NC B | G95: Oppland | H95: =SUM(I95+J95) -> 1136 | I95: 0 | J95: =SUM(K95:CX95) -> 1136 | M95: 103 | N95: 96 | AD95: 120 | AE95: 112 | BC95: 60 | BF95: 440 | BG95: 205
A96: Fannemel | B96: Brede | C96: Hornindal IL | D96: NTG | E96: M NC B | F96: 1996 | G96: Sogn og Fjordane | H96: =SUM(I96+J96) -> 1064 | I96: 287 | J96: =SUM(K96:CX96) -> 777 | M96: 96 | N96: 100 | AD96: 115 | AE96: 100 | AT96: 28 | BC96: 56 | BD96: 64 | BQ96: 103 | BR96: 115
A97: Loe | B97: Jens Fredrik | C97: Byåsen IL | D97: Trønderhopp | E97: M NC B | F97: 1996 | G97: S.Tr.lag | H97: =SUM(I97+J97) -> 1028 | I97: 0 | J97: =SUM(K97:CX97) -> 1028 | AG97: 150 | AH97: 103 | AU97: 175 | AV97: 140 | BC97: 100 | BD97: 175 | BL97: 140 | BM97: 45
A98: Gangnes | B98: Kenneth | C98: Kolbukameratene | D98: Lillehammerhopp | E98: M NC Elite | F98: 1989 | G98: Oppland | H98: =SUM(I98+J98) -> 990 | I98: 990 | J98: =SUM(K98:CX98) -> 0
A99: Braathen | B99: Mathias | C99: Øvrevoll/Hosle IL | D99: Kollenhopp | E99: M NC B | F99: 1996 | G99: Oslo | H99: =SUM(I99+J99) -> 946 | I99: 743 | J99: =SUM(K99:CX99) -> 203 | M99: 100 | N99: 103
A100: Bukkholm | B100: Markus | C100: Oddersjaa SSK | D100: NTG | E100: M NC B | F100: 1997 | G100: Agder/Rogaland | H100: =SUM(I100+J100) -> 905 | I100: 224 | J100: =SUM(K100:CX100) -> 681 | M100: 76 | N100: 80 | AD100: 103 | AE100: 96 | AT100: 24 | BC100: 44 | BD100: 52 | BQ100: 100 | BR100: 106
A101: Malm | B101: Bjørnar Kristiansen | C101: Byåsen IL | D101: Trønderhopp | E101: M NC B | F101: 1995 | G101: S.Tr.lag | H101: =SUM(I101+J101) -> 779 | I101: 115 | J101: =SUM(K101:CX101) -> 664 | AG101: 106 | AH101: 92 | AU101: 135 | AV101: 125 | BL101: 106 | BM101: 55 | CA101: 45
A102: Elvevold | B102: August | C102: Tromsø Skiklub | D102: Trønderhopp | E102: M NC B | G102: Troms | H102: =SUM(I102+J102) -> 731 | I102: 0 | J102: =SUM(K102:CX102) -> 731 | AG102: 109 | AH102: 100 | AU102: 140 | AV102: 120 | BL102: 112 | BM102: 50 | CA102: 100
A103: Markeng | B103: Audun Nybu | C103: Furnes IL | D103: Hedmarkhopp | E103: M NC B | F103: 1997 | G103: Hedmark | H103: =SUM(I103+J103) -> 640 | I103: 518 | J103: =SUM(K103:CX103) -> 122 | AT103: 30 | BC103: 92
A104: Kvernmo | B104: Mats Jakob | C104: Steinkjer Skiklubb | D104: Trønderhopp | E104: M NC B | G104: N.Tr.lag | H104: =SUM(I104+J104) -> 632 | I104: 0 | J104: =SUM(K104:CX104) -> 632 | AG104: 88 | AH104: 88 | AO104: 100 | AU104: 109 | AV104: 96 | BL104: 96 | CA104: 55
A105: Bjerke | B105: Knut | C105: Rælingen skiklubb | D105: Veteranhopp Norge | E105: M NC B | F105: 1961 | G105: Akershus | H105: =SUM(I105+J105) -> 560 | I105: 0 | J105: =SUM(K105:CX105) -> 560 | M105: 88 | N105: 88 | AD105: 109 | BC105: 35 | BQ105: 115 | BR105: 125
A106: Villumstad | B106: Fredrik Eirinsønn | C106: Skimt IL | D106: Kollenhopp | E106: M NC B | F106: 1999 | G106: Akershus | H106: =SUM(I106+J106) -> 539 | I106: 307 | J106: =SUM(K106:CX106) -> 232 | M106: 120 | N106: 112
A107: Ødegård | B107: Jesper | C107: Gausdal Skilag | E107: M NC B | F107: 1998 | G107: Oppland | H107: =SUM(I107+J107) -> 530 | I107: 0 | J107: =SUM(K107:CX107) -> 530 | BC107: 170 | BD107: 180 | BE107: 180
A108: Aasberg | B108: Nikolai | C108: Røykenhopp | D108: Flying Team Vikersund | E108: M NC B | F108: 1998 | G108: Buskerud | H108: =SUM(I108+J108) -> 480 | I108: 0 | J108: =SUM(K108:CX108) -> 480 | BC108: 125 | BD108: 190 | BE108: 165
A109: Kleven | B109: Sander | C109: Gjerpenkollen hoppklubb | D109: Flying Team Vikersund | E109: M NC B | G109: Buskerud | H109: =SUM(I109+J109) -> 472 | I109: 125 | J109: =SUM(K109:CX109) -> 347 | BC109: 72 | BD109: 100 | BE109: 175
A110: Vethe | B110: Geir | C110: Bulken IL | E110: M NC B | F110: 1977 | G110: Hordaland | H110: =SUM(I110+J110) -> 459 | I110: 190 | J110: =SUM(K110:CX110) -> 269 | BC110: 48 | BQ110: 109 | BR110: 112
A111: Næsvold | B111: Leif Torbjørn | C111: Røykenhopp | D111: Flying Team Vikersund | E111: M NC B | F111: 1998 | G111: Buskerud | H111: =SUM(I111+J111) -> 450 | I111: 84 | J111: =SUM(K111:CX111) -> 366 | BC111: 130 | BD111: 96 | BE111: 140
A112: Holt | B112: Ole Henning | C112: Sannidal IL | E112: M NC B | G112: Telemark/Vestfold | H112: =SUM(I112+J112) -> 418 | I112: 0 | J112: =SUM(K112:CX112) -> 418 | AD112: 100 | AE112: 103 | BQ112: 106 | BR112: 109
A113: Fjorden | B113: Sander Gjesdal | C113: Byåsen IL | D113: Trønderhopp | E113: M NC B | F113: 1997 | G113: S.Tr.lag | H113: =SUM(I113+J113) -> 412 | I113: 130 | J113: =SUM(K113:CX113) -> 282 | AU113: 100 | AV113: 100 | BL113: 32 | CA113: 50
A114: Bechmann | B114: Anders | C114: Gjerpenkollen hoppklubb | E114: M NC C | G114: Buskerud | H114: =SUM(I114+J114) -> 400 | I114: 0 | J114: =SUM(K114:CX114) -> 400 | AU114: 84 | AV114: 84 | BQ114: 112 | BR114: 120
A115: Pedersen | B115: Kristoffer | C115: Stålkameratene IL | D115: Trønderhopp | E115: M NC B | F115: 1993 | G115: Nordland | H115: =SUM(I115+J115) -> 390 | I115: 0 | J115: =SUM(K115:CX115) -> 390 | AU115: 130 | AV115: 130 | BL115: 130
A116: Eriksen | B116: Lars Erik | C116: Rognan IL | D116: Granåsen skiteam | E116: M NC B | G116: Nordland | H116: =SUM(I116+J116) -> 390 | I116: 0 | J116: =SUM(K116:CX116) -> 390 | AG116: 200 | AH116: 190
A117: Skatvedt | B117: Ole Andreas | C117: Trøgstad Skiklubb | E117: M NC B | F117: 1965 | G117: Østfold | H117: =SUM(I117+J117) -> 384 | I117: 0 | J117: =SUM(K117:CX117) -> 384 | AE117: 109 | BQ117: 130 | BR117: 145
A118: Garberg | B118: Anders Bredesen | C118: Orkdal IL | D118: Team ST | E118: M NC B | F118: 1997 | G118: S.Tr.lag | H118: =SUM(I118+J118) -> 382 | I118: 0 | J118: =SUM(K118:CX118) -> 382 | AU118: 103 | AV118: 109 | BL118: 100 | CA118: 70
A119: Haare | B119: Anders Sandberg | C119: Vikersund IF | D119: Flying Team Vikersund | E119: M NC B | F119: 1999 | G119: Buskerud | H119: =SUM(I119+J119) -> 335 | I119: 164 | J119: =SUM(K119:CX119) -> 171 | BC119: 68 | BD119: 103
A120: Grande | B120: Sivert | C120: Steinkjer SK | D120: Trønderhopp | E120: M NC B | G120: N.Tr.lag | H120: =SUM(I120+J120) -> 323 | I120: 0 | J120: =SUM(K120:CX120) -> 323 | AO120: 90 | AU120: 96 | AV120: 92 | BL120: 45
A121: Ingebrigtsen | B121: Christian | C121: Byåsen IL | D121: Granåsen skiteam | E121: M NC A | F121: 1994 | G121: S.Tr.lag | H121: =SUM(I121+J121) -> 317 | I121: 317 | J121: =SUM(K121:CX121) -> 0
A122: Markeng | B122: Thomas Aasen | C122: Lensbygda Sp.klubb | D122: Lillehammer hopprekrutt | E122: M NC B | F122: 2000 | G122: Oppland | H122: =SUM(I122+J122) -> 317 | I122: 103 | J122: =SUM(K122:CX122) -> 214 | BC122: 84 | BD122: 130
A123: Ladehaug | B123: Anders | C123: Nordre Land IL | D123: Lillehammer hopprekrutt | E123: M NC B | G123: Oppland | H123: =SUM(I123+J123) -> 281 | I123: 14 | J123: =SUM(K123:CX123) -> 267 | BC123: 155 | BD123: 112
A124: Wohlen | B124: Martin | C124: Steinkjer Skiklubb | D124: Team NT | E124: M NC B | F124: 1997 | G124: N.Tr.lag | H124: =SUM(I124+J124) -> 272 | I124: 0 | J124: =SUM(K124:CX124) -> 272 | AU124: 92 | AV124: 88 | BL124: 92
A125: Bratlien | B125: Jonas | C125: Bøverbru IL | E125: M NC B | G125: Oppland | H125: =SUM(I125+J125) -> 272 | I125: 12 | J125: =SUM(K125:CX125) -> 260 | BC125: 135 | BD125: 125
A126: Restad | B126: Bjørn Iver | C126: IL Leik | D126: Trønderhopp | E126: M NC B | F126: 1993 | G126: S.Tr.lag | H126: =SUM(I126+J126) -> 268 | I126: 0 | J126: =SUM(K126:CX126) -> 268 | AU126: 115 | AV126: 103 | BL126: 50
A127: Strøm | B127: Jørgen Oliver | C127: Alta IF | D127: Hedmarkhopp | E127: M NC B | F127: 2000 | G127: Finnmark | H127: =SUM(I127+J127) -> 267 | I127: 0 | J127: =SUM(K127:CX127) -> 267 | BC127: 175 | BD127: 92
A128: Leirvaag | B128: Håkon | C128: Botne SK | D128: NTG | E128: M NC B | G128: Vestfold/Telemark | H128: =SUM(I128+J128) -> 266 | I128: 140 | J128: =SUM(K128:CX128) -> 126 | AT128: 26 | BC128: 40 | BD128: 60
A129: Søtvik | B129: Sindre Ure | C129: Eldar IL | D129: Lillehammer NC | E129: M NC A | G129: Hordaland | H129: =SUM(I129+J129) -> 260 | I129: 260 | J129: =SUM(K129:CX129) -> 0
A130: Storlien | B130: Gudmund | C130: Mjøs-Ski | D130: Lillehammer NC | E130: M NC A | G130: Hedmark | H130: =SUM(I130+J130) -> 255 | I130: 255 | J130: =SUM(K130:CX130) -> 0
A131: Alstad | B131: Ola Dybvad | C131: Skatval Skilag | D131: Team NT | E131: M NC C | G131: N.Tr.lag | H131: =SUM(I131+J131) -> 248 | I131: 0 | J131: =SUM(K131:CX131) -> 248 | AO131: 80 | AU131: 88 | AV131: 80
A132: Hokholt | B132: Audun | C132: Skimt IL | D132: Kollenhopp | E132: M NC A | G132: Akershus | H132: =SUM(I132+J132) -> 245 | I132: 245 | J132: =SUM(K132:CX132) -> 0
A133: Riiber | B133: Harald Jonas | C133: Heming IL | D133: Kollenhopp | E133: M NC A | F133: 1995 | G133: Oslo | H133: =SUM(I133+J133) -> 235 | I133: 235 | J133: =SUM(K133:CX133) -> 0
A134: Bjørnstad | B134: Espen | C134: Byåsen SK | D134: Granåsen skiteam | E134: M NC B | G134: S.Tr.lag | H134: =SUM(I134+J134) -> 222 | I134: 222 | J134: =SUM(K134:CX134) -> 0
A135: Storlien | B135: Ole Martin | C135: Mjøs-Ski | D135: Lillehammer NC | E135: M NC A | G135: Hedmark | H135: =SUM(I135+J135) -> 185 | I135: 185 | J135: =SUM(K135:CX135) -> 0
A136: Andersen | B136: Espen | C136: Lommedalen IL | D136: Lillehammer NC | E136: M NC A | G136: Akershus | H136: =SUM(I136+J136) -> 185 | I136: 185 | J136: =SUM(K136:CX136) -> 0
A137: Norseng | B137: Haakon | C137: IL Ivrig | E137: M NC B | G137: Telemark/Vestfold | H137: =SUM(I137+J137) -> 168 | I137: 0 | J137: =SUM(K137:CX137) -> 168 | M137: 84 | N137: 84
A138: Lien | B138: Øystein Granbu | C138: Gausdal Skilag | D138: Lillehammer NC | E138: M NC A | G138: Oppland | H138: =SUM(I138+J138) -> 165 | I138: 165 | J138: =SUM(K138:CX138) -> 0
A139: Rastad | B139: Morten Øgar | C139: Hurdal IL | D139: Lillehammerhopp | E139: M NC B | F139: 1988 | G139: Akershus | H139: =SUM(I139+J139) -> 155 | I139: 0 | J139: =SUM(K139:CX139) -> 155 | BC139: 155
A140: Månum | B140: Markus | C140: Raufoss IL | E140: M NC B | F140: 1998 | G140: Oppland | H140: =SUM(I140+J140) -> 152 | I140: 0 | J140: =SUM(K140:CX140) -> 152 | BC140: 76 | BD140: 76
A141: Skeie | B141: Sondre | C141: Bulken | D141: Lillehammerhopp | E141: M NC B | F141: 1993 | G141: Hordaland | H141: =SUM(I141+J141) -> 145 | I141: 145 | J141: =SUM(K141:CX141) -> 0
A142: Sommerstad | B142: Rolf Ole | C142: Tolga IL | D142: Lillehammerhopp | E142: M NC A | F142: 1992 | G142: Hedmark | H142: =SUM(I142+J142) -> 120 | I142: 0 | J142: =SUM(K142:CX142) -> 120 | BC142: 52 | BD142: 68
A143: Waaler | B143: Mads Kristoffer | C143: Aurskog/Finstadbru | D143: Lillehammer NC | E143: M NC A | G143: Akershus | H143: =SUM(I143+J143) -> 115 | I143: 115 | J143: =SUM(K143:CX143) -> 0
A144: Johansen | B144: Truls S | C144: Elverum Hopp | D144: Lillehammer NC | E144: M NC A | G144: Hedmark | H144: =SUM(I144+J144) -> 100 | I144: 100 | J144: =SUM(K144:CX144) -> 0
A145: Heimdal | B145: Oddgeir | C145: Raufoss IL | E145: M NC B | G145: Oppland | H145: =SUM(I145+J145) -> 95 | I145: 0 | J145: =SUM(K145:CX145) -> 95 | BC145: 45 | BD145: 50
A146: Ringstad | B146: Lars | C146: Skogn IL | D146: Granåsen skiteam | E146: M NC B | F146: 1996 | G146: N.Tr.lag | H146: =SUM(I146+J146) -> 92 | I146: 0 | J146: =SUM(K146:CX146) -> 92 | AG146: 92
A147: Myhr | B147: Sverre Aas | C147: Søre Ål IL | E147: M NC B | F147: 1998 | G147: Oppland | H147: =SUM(I147+J147) -> 92 | I147: 0 | J147: =SUM(K147:CX147) -> 92 | BD147: 92
A148: Lislegaard | B148: Geir Rune | C148: Skoppum IL | E148: M NC C | F148: 1963 | G148: Vestfold/Telemark | H148: =SUM(I148+J148) -> 85 | I148: 0 | J148: =SUM(K148:CX148) -> 85 | BC148: 40 | BD148: 45
A149: Slåttsveen | B149: Lars Andreas | C149: Kolbukameratene | E149: M NC C | G149: Oppland | H149: =SUM(I149+J149) -> 72 | I149: 0 | J149: =SUM(K149:CX149) -> 72 | BC149: 32 | BD149: 40
A150: Fredheim | B150: Ove | C150: Hafslo IL | D150: Veteranhopp Norge | E150: M NC C | G150: Hordaland | H150: =SUM(I150+J150) -> 63 | I150: 0 | J150: =SUM(K150:CX150) -> 63 | BC150: 28 | BD150: 35
A151: Hansen | B151: Pål Teodor | C151: Rognan IL | D151: Trønderhopp | E151: M NC C | G151: Nordland | H151: =SUM(I151+J151) -> 60 | I151: 0 | J151: =SUM(K151:CX151) -> 60 | CA151: 60
A152: Tillung | B152: Stian | C152: Vargar IL | E152: M NC C | F152: 1990 | G152: Hordaland | H152: =SUM(I152+J152) -> 50 | I152: 0 | J152: =SUM(K152:CX152) -> 50 | BC152: 50
A153: Smeland | B153: Håvard | C153: Vegårdshei IL | D153: Trønderhopp | E153: M NC C | G153: Agder/Rogaland | H153: =SUM(I153+J153) -> 40 | I153: 0 | J153: =SUM(K153:CX153) -> 40 | BL153: 40
A154: Kvandal | B154: Even | C154: Mosjøen IL | E154: M NC C | G154: Nordland | H154: =SUM(I154+J154) -> 40 | I154: 0 | J154: =SUM(K154:CX154) -> 40 | CA154: 40
A155: Breivik | B155: Andreas Varsi | C155: Tromsø Skiklub | E155: M NC B | F155: 1997 | G155: Troms | H155: =SUM(I155+J155) -> 35 | I155: 0 | J155: =SUM(K155:CX155) -> 35 | BL155: 35
A156: Hage | B156: Olav | C156: Åsmarka IL | D156: Veteranhopp Norge | E156: M NC C | G156: Hedmark | H156: =SUM(I156+J156) -> 30 | I156: 0 | J156: =SUM(K156:CX156) -> 30 | BC156: 30
A157: Gaarder | B157: Jens | C157: Raufoss IL | E157: M NC B | G157: Oppland | H157: =SUM(I157+J157) -> 24 | I157: 24 | J157: =SUM(K157:CX157) -> 0
A158: Torgersen | B158: Hans Erik Lie | C158: Søre Ål IL | D158: Lillehammerhopp | E158: M NC A | F158: 1991 | G158: Oppland | H158: =SUM(I158+J158) -> 0 | I158: 0 | J158: =SUM(K158:CX158) -> 0
A159: Johansen | B159: Marius Fredrik | C159: Leknes&Omegn | D159: Trønderhopp | E159: M NC A | F159: 1989 | G159: Nordland | H159: =SUM(I159+J159) -> 0 | I159: 0 | J159: =SUM(K159:CX159) -> 0
A160: Fannemel | B160: Lorentz | C160: Hornindal IL | D160: NTG | E160: M NC A | F160: 1994 | G160: Sogn og Fjordane | H160: =SUM(I160+J160) -> 0 | I160: 0 | J160: =SUM(K160:CX160) -> 0
A161: Stea | B161: Henning | C161: Sogne SK | D161: Sørlandshopp | E161: M NC B | F161: 1995 | G161: Agder/Rogaland | H161: =SUM(I161+J161) -> 0 | I161: 0 | J161: =SUM(K161:CX161) -> 0
A162: Ruud | B162: Eivind Østlund | C162: Røykenhopp | D162: Flying Team Vikersund | E162: M NC B | F162: 1994 | G162: Buskerud | H162: =SUM(I162+J162) -> 0 | I162: 0 | J162: =SUM(K162:CX162) -> 0
A163: Rodahl | B163: Sondre Johannes | C163: Lommedalen IL | D163: Kollenhopp | E163: M NC B | F163: 1994 | G163: Akershus | H163: =SUM(I163+J163) -> 0 | I163: 0 | J163: =SUM(K163:CX163) -> 0
A164: Ristad | B164: Mathias | C164: Overhalla IL | D164: Trønderhopp | E164: M NC B | F164: 1992 | G164: N.Tr.lag | H164: =SUM(I164+J164) -> 0 | I164: 0 | J164: =SUM(K164:CX164) -> 0
A165: Overrein | B165: Kristoffer Ertzaas | C165: Byåsen IL | D165: Team ST | E165: M NC B | F165: 1997 | G165: S.Tr.lag | H165: =SUM(I165+J165) -> 0 | I165: 0 | J165: =SUM(K165:CX165) -> 0
A166: Olsen | B166: Andrè Nyeng | C166: Byåsen IL | D166: Granåsen skiteam | E166: M NC B | F166: 1989 | G166: S.Tr.lag | H166: =SUM(I166+J166) -> 0 | I166: 0 | J166: =SUM(K166:CX166) -> 0
A167: Mauseth | B167: Martin Dannevig | C167: Molde og Omegn IF | E167: M NC B | F167: 1997 | G167: Møre&Romsdal | H167: =SUM(I167+J167) -> 0 | I167: 0 | J167: =SUM(K167:CX167) -> 0
A168: Håland | B168: Sondre | C168: Øyestad IF | D168: Sørlandshopp | E168: M NC B | F168: 1995 | G168: Agder/Rogaland | H168: =SUM(I168+J168) -> 0 | I168: 0 | J168: =SUM(K168:CX168) -> 0
A169: Høidal | B169: Lars Martin | C169: Ready | D169: Kollenhopp | E169: M NC B | G169: Oslo | H169: =SUM(I169+J169) -> 0 | I169: 0 | J169: =SUM(K169:CX169) -> 0
A170: Hasdal | B170: Olav Haugen | C170: Gjerstad IL | D170: Sørlandshopp | E170: M NC B | G170: Agder/Rogaland | H170: =SUM(I170+J170) -> 0 | I170: 0 | J170: =SUM(K170:CX170) -> 0
A171: Hansen | B171: Ragnar | C171: Byåsen IL | D171: Granåsen skiteam | E171: M NC B | G171: S.Tr.lag | H171: =SUM(I171+J171) -> 0 | I171: 0 | J171: =SUM(K171:CX171) -> 0
A172: Gyth-Dehli | B172: Ole Fredrik | C172: Botne SK | D172: Lillehammerhopp | E172: M NC B | F172: 1992 | G172: Vestfold/Telemark | H172: =SUM(I172+J172) -> 0 | I172: 0 | J172: =SUM(K172:CX172) -> 0
A173: Eikehaug | B173: Jarle | C173: Ørn IF | D173: Flying Team Vikersund | E173: M NC B | F173: 1996 | G173: Telemark/Vestfold | H173: =SUM(I173+J173) -> 0 | I173: 0 | J173: =SUM(K173:CX173) -> 0
A174: Børve | B174: Sjur Hovdal | C174: Snøhetta IL | D174: Granåsen skiteam | E174: M NC B | F174: 1995 | G174: S.Tr.lag | H174: =SUM(I174+J174) -> 0 | I174: 0 | J174: =SUM(K174:CX174) -> 0
A175: Buraas | B175: Lars | C175: Hurdal IL | E175: M NC B | F175: 1995 | G175: Akershus | H175: =SUM(I175+J175) -> 0 | I175: 0 | J175: =SUM(K175:CX175) -> 0
A176: Brendryen | B176: Aleksander | C176: Byåsen IL | D176: Team ST | E176: M NC B | F176: 1996 | G176: S.Tr.lag | H176: =SUM(I176+J176) -> 0 | I176: 0 | J176: =SUM(K176:CX176) -> 0
A177: Aalien | B177: Fredrik | C177: Eggedal IL | D177: Flying Team Vikersund | E177: M NC B | F177: 1993 | G177: Buskerud | H177: =SUM(I177+J177) -> 0 | I177: 0 | J177: =SUM(K177:CX177) -> 0
A178: Værås | B178: Jon | C178: Rollag og Veggli | E178: M NC C | G178: Buskerud | H178: =SUM(I178+J178) -> 0 | I178: 0 | J178: =SUM(K178:CX178) -> 0
A179: Villesvik | B179: Stein Arne | C179: Østre Aker skiklubb | D179: Veteranhopp Norge | E179: M NC C | G179: Oslo | H179: =SUM(I179+J179) -> 0 | I179: 0 | J179: =SUM(K179:CX179) -> 0
A180: Tenstad | B180: Petter | C180: Kongsberg IF | E180: M NC C | G180: Buskerud | H180: =SUM(I180+J180) -> 0 | I180: 0 | J180: =SUM(K180:CX180) -> 0
A181: Tellefsen | B181: Jan Erik | C181: Pors IF | E181: M NC C | G181: Telemark/Vestfold | H181: =SUM(I181+J181) -> 0 | I181: 0 | J181: =SUM(K181:CX181) -> 0
A182: Sørbø | B182: Ingebrigt | C182: Gjerstad IL | E182: M NC C | G182: Agder/Rogaland | H182: =SUM(I182+J182) -> 0 | I182: 0 | J182: =SUM(K182:CX182) -> 0
A183: Søgaard | B183: Svenn-Martin | C183: Vallset IL | D183: Hedmarkhopp | E183: M NC C | G183: Hedmark | H183: =SUM(I183+J183) -> 0 | I183: 0 | J183: =SUM(K183:CX183) -> 0
A184: Skårset | B184: Ivar | C184: Søre Ål IL | E184: M NC C | G184: Oppland | H184: =SUM(I184+J184) -> 0 | I184: 0 | J184: =SUM(K184:CX184) -> 0
A185: Ringkilen | B185: Torry | C185: Horten SK | D185: Veteranhopp Norge | E185: M NC C | G185: Telemark/Vestfold | H185: =SUM(I185+J185) -> 0 | I185: 0 | J185: =SUM(K185:CX185) -> 0
A186: Lunde | B186: Egil | C186: Røykenhopp | D186: Veteranhopp Norge | E186: M NC C | G186: Buskerud | H186: =SUM(I186+J186) -> 0 | I186: 0 | J186: =SUM(K186:CX186) -> 0
A187: Lundby | B187: Håkon | C187: Kolbukameratene | E187: M NC C | G187: Oppland | H187: =SUM(I187+J187) -> 0 | I187: 0 | J187: =SUM(K187:CX187) -> 0
A188: Kalleberg | B188: Pål | C188: Østre Aker skiklubb | D188: Veteranhopp Norge | E188: M NC C | G188: Oslo | H188: =SUM(I188+J188) -> 0 | I188: 0 | J188: =SUM(K188:CX188) -> 0
A189: Kaardal | B189: Tom | C189: Horten SK | E189: M NC C | G189: Telemark/Vestfold | H189: =SUM(I189+J189) -> 0 | I189: 0 | J189: =SUM(K189:CX189) -> 0
A190: Jørgensen | B190: Arne | C190: Horten SK | D190: Veteranhopp Norge | E190: M NC C | G190: Telemark/Vestfold | H190: =SUM(I190+J190) -> 0 | I190: 0 | J190: =SUM(K190:CX190) -> 0
A191: Ilestad | B191: Egil | C191: Botne SK | E191: M NC C | G191: Telemark/Vestfold | H191: =SUM(I191+J191) -> 0 | I191: 0 | J191: =SUM(K191:CX191) -> 0
A192: Haaheim | B192: Pål | C192: Froland IL | E192: M NC C | G192: Agder/Rogaland | H192: =SUM(I192+J192) -> 0 | I192: 0 | J192: =SUM(K192:CX192) -> 0
A193: Gullbekk | B193: Tom | C193: Røykenhopp | E193: M NC C | G193: Buskerud | H193: =SUM(I193+J193) -> 0 | I193: 0 | J193: =SUM(K193:CX193) -> 0
A194: Berger | B194: Fredrik | C194: Røykenhopp | E194: M NC C | G194: Buskerud | H194: =SUM(I194+J194) -> 0 | I194: 0 | J194: =SUM(K194:CX194) -> 0
A195: Andersen | B195: Per Espen | C195: Øyestad IF | E195: M NC C | G195: Agder/Rogaland | H195: =SUM(I195+J195) -> 0 | I195: 0 | J195: =SUM(K195:CX195) -> 0
A196: Aas | B196: Erlend | C196: Byåsen IL | D196: Team ST | E196: M NC C | G196: S.Tr.lag | H196: =SUM(I196+J196) -> 0 | I196: 0 | J196: =SUM(K196:CX196) -> 0

Sheet Ark2

Sheet Ark3
